[Event "Titled Tuesday Blitz June 13 Early 2023"]
[White "Alex_Sahakyan2006"]
[Black "Akylbek2021"]
[WhiteElo "2670"]
[BlackElo "2492"]
[Result "0-1"]
[Round "4"]
[TimeControl "180+2"]
[Date "2023.06.13"]
[WhiteClock "0:00:46"]
[BlackClock "0:01:24"]
[Board "82"]

1. Nf3 {[%clk 0:03:00]}  Nf6 {[%clk 0:03:00]} 2. c4 {[%clk 0:02:59]}  g6 {[%clk 0:03:00]} 3. g3 {[%clk 0:02:59]}  Bg7 {[%clk 0:03:00]} 4. Bg2 {[%clk 0:03:00]}  O-O {[%clk 0:03:01]} 5. O-O {[%clk 0:03:00]}  d5 {[%clk 0:03:02]} 6. cxd5 {[%clk 0:03:00]}  Nxd5 {[%clk 0:03:03]} 7. Nc3 {[%clk 0:03:00]}  Nb6 {[%clk 0:03:03]} 8. d4 {[%clk 0:02:59]}  Nc6 {[%clk 0:03:03]} 9. e3 {[%clk 0:02:59]}  a5 {[%clk 0:03:03]} 10. h3 {[%clk 0:02:57]}  a4 {[%clk 0:02:57]} 11. Qe2 {[%clk 0:02:56]}  e5 {[%clk 0:02:57]} 12. dxe5 {[%clk 0:02:56]}  Nxe5 {[%clk 0:02:57]} 13. Nxe5 {[%clk 0:02:57]}  Bxe5 {[%clk 0:02:58]} 14. e4 {[%clk 0:02:57]}  Be6 {[%clk 0:02:55]} 15. Bh6 {[%clk 0:02:57]}  Re8 {[%clk 0:02:50]} 16. Rfd1 {[%clk 0:02:54]}  Qe7 {[%clk 0:02:50]} 17. Kh2 {[%clk 0:02:44]}  a3 {[%clk 0:02:42]} 18. Bc1 {[%clk 0:00:46]}  Qb4 {[%clk 0:01:24]} 0-1


[Site "https://www.chess.com"]

[Event "Titled Tuesday Blitz June 13 Early 2023"]
[White "Papayan, Oleg"]
[Black "Nazari, Arad"]
[WhiteFideId "4193911"]
[BlackFideId "12577324"]
[WhiteElo "2167"]
[BlackElo "2175"]
[Result "0-1"]
[Round "4"]
[TimeControl "180+2"]
[Date "2023.06.13"]
[WhiteClock "0:00:06"]
[BlackClock "0:00:12"]
[Board "83"]

1. e4 {[%clk 0:02:57]}  c5 {[%clk 0:02:59]} 2. d4 {[%clk 0:02:57]}  cxd4 {[%clk 0:02:59]} 3. Qxd4 {[%clk 0:02:58]}  Nc6 {[%clk 0:02:58]} 4. Qd3 {[%clk 0:02:58]}  g6 {[%clk 0:02:59]} 5. Nc3 {[%clk 0:02:59]}  Bg7 {[%clk 0:02:59]} 6. Nf3 {[%clk 0:02:59]}  d6 {[%clk 0:03:00]} 7. Be2 {[%clk 0:03:00]}  Bg4 {[%clk 0:02:59]} 8. O-O {[%clk 0:03:00]}  Nf6 {[%clk 0:03:00]} 9. Nd5 {[%clk 0:03:00]}  O-O {[%clk 0:02:58]} 10. c3 {[%clk 0:03:00]}  a6 {[%clk 0:02:47]} 11. Bg5 {[%clk 0:02:59]}  Bxf3 {[%clk 0:02:45]} 12. Qxf3 {[%clk 0:02:54]}  Ne5 {[%clk 0:02:45]} 13. Qe3 {[%clk 0:02:45]}  Nxd5 {[%clk 0:02:36]} 14. exd5 {[%clk 0:02:46]}  Re8 {[%clk 0:02:32]} 15. f4 {[%clk 0:02:19]}  Nd7 {[%clk 0:02:30]} 16. f5 {[%clk 0:02:19]}  Qb6 {[%clk 0:02:26]} 17. fxg6 {[%clk 0:02:06]}  hxg6 {[%clk 0:02:19]} 18. Qf2 {[%clk 0:01:38]}  Qxf2+ {[%clk 0:02:03]} 19. Rxf2 {[%clk 0:01:39]}  Bf6 {[%clk 0:02:03]} 20. Be3 {[%clk 0:00:58]}  Rac8 {[%clk 0:01:56]} 21. a4 {[%clk 0:00:45]}  Ne5 {[%clk 0:01:55]} 22. Bd4 {[%clk 0:00:40]}  Kg7 {[%clk 0:01:53]} 23. Ra3 {[%clk 0:00:34]}  Nd7 {[%clk 0:01:45]} 24. Be3 {[%clk 0:00:29]}  Nc5 {[%clk 0:01:42]} 25. a5 {[%clk 0:00:21]}  Rc7 {[%clk 0:01:28]} 26. Bf3 {[%clk 0:00:20]}  Nd3 {[%clk 0:01:22]} 27. Rd2 {[%clk 0:00:17]}  Ne5 {[%clk 0:01:23]} 28. Be2 {[%clk 0:00:17]}  Nc4 {[%clk 0:01:22]} 29. Bb6 {[%clk 0:00:14]}  Nxb6 {[%clk 0:01:07]} 30. axb6 {[%clk 0:00:14]}  Rc5 {[%clk 0:01:08]} 31. Kf2 {[%clk 0:00:10]}  Rec8 {[%clk 0:01:08]} 32. g3 {[%clk 0:00:09]}  Bg5 {[%clk 0:01:07]} 33. Rd4 {[%clk 0:00:08]}  Bf6 {[%clk 0:01:00]} 34. Rd2 {[%clk 0:00:08]}  g5 {[%clk 0:00:49]} 35. Ra4 {[%clk 0:00:08]}  Be5 {[%clk 0:00:43]} 36. Bg4 {[%clk 0:00:08]}  Rh8 {[%clk 0:00:42]} 37. h3 {[%clk 0:00:07]}  Rb5 {[%clk 0:00:42]} 38. Kg2 {[%clk 0:00:06]}  Rxb6 {[%clk 0:00:42]} 39. Bd7 {[%clk 0:00:04]}  Rd8 {[%clk 0:00:38]} 40. Bg4 {[%clk 0:00:04]}  Rb5 {[%clk 0:00:32]} 41. Be2 {[%clk 0:00:04]}  Rc5 {[%clk 0:00:31]} 42. Bf3 {[%clk 0:00:05]}  a5 {[%clk 0:00:29]} 43. Re2 {[%clk 0:00:03]}  Ra8 {[%clk 0:00:26]} 44. Rd2 {[%clk 0:00:03]}  b5 {[%clk 0:00:27]} 45. Ra2 {[%clk 0:00:03]}  a4 {[%clk 0:00:27]} 46. Be2 {[%clk 0:00:03]}  Rb8 {[%clk 0:00:27]} 47. Bf3 {[%clk 0:00:03]}  b4 {[%clk 0:00:24]} 48. Rxa4 {[%clk 0:00:03]}  bxc3 {[%clk 0:00:23]} 49. bxc3 {[%clk 0:00:04]}  Rxc3 {[%clk 0:00:24]} 50. Rg4 {[%clk 0:00:03]}  f6 {[%clk 0:00:24]} 51. h4 {[%clk 0:00:03]}  Rbb3 {[%clk 0:00:24]} 52. Rf2 {[%clk 0:00:03]}  Kh6 {[%clk 0:00:18]} 53. hxg5+ {[%clk 0:00:03]}  fxg5 {[%clk 0:00:18]} 54. Re4 {[%clk 0:00:03]}  Rd3 {[%clk 0:00:18]} 55. Rc4 {[%clk 0:00:03]}  Bd4 {[%clk 0:00:16]} 56. Rf1 {[%clk 0:00:03]}  Rd2+ {[%clk 0:00:15]} 57. Kh3 {[%clk 0:00:03]}  Be5 {[%clk 0:00:14]} 58. Kg4 {[%clk 0:00:03]}  Rdd3 {[%clk 0:00:11]} 59. Rh1+ {[%clk 0:00:03]}  Kg7 {[%clk 0:00:11]} 60. Rf1 {[%clk 0:00:04]}  Re3 {[%clk 0:00:11]} 61. Rc7 {[%clk 0:00:04]}  Bf6 {[%clk 0:00:11]} 62. Rc4 {[%clk 0:00:03]}  Ra3 {[%clk 0:00:11]} 63. Re4 {[%clk 0:00:03]}  Red3 {[%clk 0:00:11]} 64. Rc4 {[%clk 0:00:03]}  Rab3 {[%clk 0:00:08]} 65. Ra4 {[%clk 0:00:03]}  Rb2 {[%clk 0:00:08]} 66. Re4 {[%clk 0:00:03]}  Rbd2 {[%clk 0:00:08]} 67. Rc4 {[%clk 0:00:03]}  Rb2 {[%clk 0:00:09]} 68. Ra4 {[%clk 0:00:03]}  Rc2 {[%clk 0:00:08]} 69. Rb4 {[%clk 0:00:03]}  Rcc3 {[%clk 0:00:08]} 70. Ra4 {[%clk 0:00:04]}  Rd2 {[%clk 0:00:04]} 71. Rb4 {[%clk 0:00:04]}  Rcd3 {[%clk 0:00:05]} 72. Ra4 {[%clk 0:00:04]}  Rd4+ {[%clk 0:00:05]} 73. Rxd4 {[%clk 0:00:04]}  Rxd4+ {[%clk 0:00:06]} 74. Kf5 {[%clk 0:00:05]}  Rd3 {[%clk 0:00:07]} 75. Ke6 {[%clk 0:00:04]}  Re3+ {[%clk 0:00:07]} 76. Kd7 {[%clk 0:00:04]}  Be5 {[%clk 0:00:05]} 77. g4 {[%clk 0:00:05]}  Bf4 {[%clk 0:00:05]} 78. Bd1 {[%clk 0:00:04]}  Kf6 {[%clk 0:00:05]} 79. Bc2 {[%clk 0:00:04]}  Ke5 {[%clk 0:00:05]} 80. Rd1 {[%clk 0:00:03]}  Kf6 {[%clk 0:00:03]} 81. Bf5 {[%clk 0:00:03]}  Ra3 {[%clk 0:00:02]} 82. Be6 {[%clk 0:00:03]}  Ra7+ {[%clk 0:00:03]} 83. Kc6 {[%clk 0:00:04]}  Ke5 {[%clk 0:00:03]} 84. Re1+ {[%clk 0:00:03]}  Kd4 {[%clk 0:00:04]} 85. Rd1+ {[%clk 0:00:03]}  Ke3 {[%clk 0:00:04]} 86. Rb1 {[%clk 0:00:03]}  Kf3 {[%clk 0:00:03]} 87. Rb7 {[%clk 0:00:04]}  Ra6+ {[%clk 0:00:03]} 88. Kd7 {[%clk 0:00:05]}  Be5 {[%clk 0:00:02]} 89. Kxe7 {[%clk 0:00:05]}  Ra4 {[%clk 0:00:03]} 90. Kf7 {[%clk 0:00:04]}  Rxg4 {[%clk 0:00:03]} 91. Bxg4+ {[%clk 0:00:04]}  Kxg4 {[%clk 0:00:04]} 92. Ke6 {[%clk 0:00:04]}  Kh4 {[%clk 0:00:02]} 93. Rh7+ {[%clk 0:00:04]}  Kg3 {[%clk 0:00:02]} 94. Kf5 {[%clk 0:00:04]}  Bf4 {[%clk 0:00:03]} 95. Rg7 {[%clk 0:00:04]}  Kf3 {[%clk 0:00:03]} 96. Rg6 {[%clk 0:00:03]}  Ke3 {[%clk 0:00:04]} 97. Rg7 {[%clk 0:00:01]}  Kd4 {[%clk 0:00:04]} 98. Rg6 {[%clk 0:00:01]}  Kxd5 {[%clk 0:00:04]} 99. Kg4 {[%clk 0:00:01]}  Ke4 {[%clk 0:00:04]} 100. Re6+ {[%clk 0:00:02]}  Kd5 {[%clk 0:00:04]} 101. Re7 {[%clk 0:00:02]}  Kc4 {[%clk 0:00:04]} 102. Kf3 {[%clk 0:00:02]}  Kd3 {[%clk 0:00:04]} 103. Rc7 {[%clk 0:00:02]}  d5 {[%clk 0:00:04]} 104. Rc8 {[%clk 0:00:03]}  d4 {[%clk 0:00:05]} 105. Rd8 {[%clk 0:00:04]}  Be3 {[%clk 0:00:06]} 106. Rd7 {[%clk 0:00:04]}  Kd2 {[%clk 0:00:06]} 107. Rd5 {[%clk 0:00:04]}  Kc3 {[%clk 0:00:04]} 108. Rc5+ {[%clk 0:00:04]}  Kb4 {[%clk 0:00:04]} 109. Rd5 {[%clk 0:00:04]}  Kc4 {[%clk 0:00:05]} 110. Ke4 {[%clk 0:00:04]}  g4 {[%clk 0:00:05]} 111. Rd8 {[%clk 0:00:05]}  g3 {[%clk 0:00:05]} 112. Rg8 {[%clk 0:00:05]}  Bf2 {[%clk 0:00:06]} 113. Rc8+ {[%clk 0:00:05]}  Kb4 {[%clk 0:00:06]} 114. Rg8 {[%clk 0:00:05]}  Kc3 {[%clk 0:00:06]} 115. Rc8+ {[%clk 0:00:05]}  Kd2 {[%clk 0:00:06]} 116. Rg8 {[%clk 0:00:05]}  Ke2 {[%clk 0:00:06]} 117. Rg7 {[%clk 0:00:03]}  d3 {[%clk 0:00:06]} 118. Rg6 {[%clk 0:00:02]}  d2 {[%clk 0:00:07]} 119. Rd6 {[%clk 0:00:01]}  d1=Q {[%clk 0:00:07]} 120. Rxd1 {[%clk 0:00:01]}  Kxd1 {[%clk 0:00:08]} 121. Kf3 {[%clk 0:00:02]}  Be1 {[%clk 0:00:07]} 122. Kg2 {[%clk 0:00:03]}  Ke2 {[%clk 0:00:08]} 123. Kh1 {[%clk 0:00:03]}  Kf3 {[%clk 0:00:08]} 124. Kg1 {[%clk 0:00:04]}  g2 {[%clk 0:00:09]} 125. Kh2 {[%clk 0:00:04]}  Bg3+ {[%clk 0:00:10]} 126. Kg1 {[%clk 0:00:05]}  Bf2+ {[%clk 0:00:10]} 127. Kh2 {[%clk 0:00:05]}  g1=Q+ {[%clk 0:00:11]} 128. Kh3 {[%clk 0:00:06]}  Qg3# {[%clk 0:00:12]} 0-1


[Site "https://www.chess.com"]

[Event "Titled Tuesday Blitz June 13 Early 2023"]
[White "Veiga, Jose Francisco R P Neves"]
[Black "Mogirzan, Matei-Valeriu"]
[WhiteFideId "1930087"]
[BlackFideId "1257455"]
[WhiteElo "2319"]
[BlackElo "1733"]
[Result "1-0"]
[Round "4"]
[TimeControl "180+2"]
[Date "2023.06.13"]
[WhiteClock "0:01:15"]
[BlackClock "0:00:01"]
[Board "89"]

1. c4 {[%clk 0:02:57]}  Nf6 {[%clk 0:02:59]} 2. Nc3 {[%clk 0:02:58]}  Nc6 {[%clk 0:02:49]} 3. d4 {[%clk 0:02:54]}  g6 {[%clk 0:02:47]} 4. e4 {[%clk 0:02:53]}  d6 {[%clk 0:02:46]} 5. d5 {[%clk 0:02:47]}  Nb8 {[%clk 0:02:45]} 6. f4 {[%clk 0:02:46]}  Bg7 {[%clk 0:02:33]} 7. Nf3 {[%clk 0:02:46]}  Bg4 {[%clk 0:02:25]} 8. Be2 {[%clk 0:02:46]}  Bxf3 {[%clk 0:02:19]} 9. Bxf3 {[%clk 0:02:46]}  O-O {[%clk 0:02:19]} 10. O-O {[%clk 0:02:45]}  Nfd7 {[%clk 0:02:16]} 11. Qc2 {[%clk 0:02:40]}  a5 {[%clk 0:02:10]} 12. Be3 {[%clk 0:02:39]}  Na6 {[%clk 0:02:08]} 13. b3 {[%clk 0:02:37]}  c6 {[%clk 0:02:01]} 14. Rad1 {[%clk 0:02:36]}  Rc8 {[%clk 0:01:57]} 15. a3 {[%clk 0:02:30]}  Qc7 {[%clk 0:01:31]} 16. Kh1 {[%clk 0:02:17]}  e6 {[%clk 0:01:19]} 17. dxe6 {[%clk 0:02:00]}  fxe6 {[%clk 0:01:18]} 18. Ne2 {[%clk 0:02:01]}  d5 {[%clk 0:00:59]} 19. exd5 {[%clk 0:01:58]}  cxd5 {[%clk 0:00:56]} 20. Nd4 {[%clk 0:01:56]}  Ndc5 {[%clk 0:00:41]} 21. cxd5 {[%clk 0:01:53]}  e5 {[%clk 0:00:32]} 22. d6 {[%clk 0:01:43]}  Qxd6 {[%clk 0:00:25]} 23. Nf5 {[%clk 0:01:44]}  Qc7 {[%clk 0:00:20]} 24. Nxg7 {[%clk 0:01:43]}  Qxg7 {[%clk 0:00:21]} 25. Qc4+ {[%clk 0:01:37]}  Kh8 {[%clk 0:00:21]} 26. fxe5 {[%clk 0:01:33]}  b6 {[%clk 0:00:18]} 27. b4 {[%clk 0:01:25]}  axb4 {[%clk 0:00:02]} 28. axb4 {[%clk 0:01:26]}  Ne4 {[%clk 0:00:02]} 29. Qxe4 {[%clk 0:01:24]}  Nc7 {[%clk 0:00:02]} 30. e6 {[%clk 0:01:19]}  Rf6 {[%clk 0:00:01]} 31. Bd4 {[%clk 0:01:19]}  Nxe6 {[%clk 0:00:01]} 32. Bxf6 {[%clk 0:01:17]}  Qxf6 {[%clk 0:00:02]} 33. Bg4 {[%clk 0:01:17]}  Nf4 {[%clk 0:00:01]} 34. Qxf4 {[%clk 0:01:16]}  Qg7 {[%clk 0:00:01]} 35. Bxc8 {[%clk 0:01:15]} 1-0


[Site "https://www.chess.com"]

[Event "Titled Tuesday Blitz June 13 Early 2023"]
[White "crosky"]
[Black "Miranda, Rafael"]
[BlackFideId "130990"]
[WhiteElo "2378"]
[BlackElo "2204"]
[Result "0-1"]
[Round "4"]
[TimeControl "180+2"]
[Date "2023.06.13"]
[WhiteClock "0:00:25"]
[BlackClock "0:00:44"]
[Board "93"]

1. d4 {[%clk 0:03:00]}  Nf6 {[%clk 0:02:59]} 2. c4 {[%clk 0:02:59]}  c5 {[%clk 0:02:59]} 3. d5 {[%clk 0:02:59]}  e6 {[%clk 0:03:00]} 4. Nc3 {[%clk 0:02:59]}  exd5 {[%clk 0:03:00]} 5. cxd5 {[%clk 0:03:00]}  d6 {[%clk 0:03:01]} 6. e4 {[%clk 0:03:00]}  g6 {[%clk 0:02:59]} 7. f4 {[%clk 0:03:00]}  Bg7 {[%clk 0:02:59]} 8. Bb5+ {[%clk 0:03:01]}  Nfd7 {[%clk 0:02:59]} 9. a4 {[%clk 0:03:00]}  Qh4+ {[%clk 0:03:00]} 10. g3 {[%clk 0:03:00]}  Qe7 {[%clk 0:02:59]} 11. Nf3 {[%clk 0:02:59]}  O-O {[%clk 0:02:59]} 12. O-O {[%clk 0:02:59]}  Na6 {[%clk 0:02:55]} 13. Re1 {[%clk 0:02:55]}  Nb4 {[%clk 0:02:55]} 14. Bf1 {[%clk 0:02:35]}  b6 {[%clk 0:02:46]} 15. Nd2 {[%clk 0:02:26]}  Bd4+ {[%clk 0:02:35]} 16. Kh1 {[%clk 0:02:25]}  Nf6 {[%clk 0:02:34]} 17. Nc4 {[%clk 0:02:19]}  Ng4 {[%clk 0:02:30]} 18. Kg2 {[%clk 0:02:07]}  h5 {[%clk 0:02:21]} 19. Nb5 {[%clk 0:02:00]}  Nf2 {[%clk 0:02:20]} 20. Qf3 {[%clk 0:01:53]}  Bh3+ {[%clk 0:02:02]} 21. Kg1 {[%clk 0:01:48]}  Bg4 {[%clk 0:01:58]} 22. Nxd4 {[%clk 0:01:24]}  Bxf3 {[%clk 0:01:56]} 23. Nxf3 {[%clk 0:01:25]}  Nxe4 {[%clk 0:01:49]} 24. Ng5 {[%clk 0:01:19]}  f5 {[%clk 0:01:46]} 25. Bg2 {[%clk 0:01:01]}  Nc2 {[%clk 0:01:45]} 26. Bd2 {[%clk 0:00:53]}  Nxa1 {[%clk 0:01:18]} 27. Nxe4 {[%clk 0:00:51]}  Nc2 {[%clk 0:01:12]} 28. Rc1 {[%clk 0:00:49]}  Nd4 {[%clk 0:01:10]} 29. Nexd6 {[%clk 0:00:41]}  Ne2+ {[%clk 0:01:08]} 30. Kf2 {[%clk 0:00:41]}  Nxc1 {[%clk 0:01:08]} 31. Bxc1 {[%clk 0:00:42]}  Rad8 {[%clk 0:01:06]} 32. Nb5 {[%clk 0:00:35]}  a6 {[%clk 0:00:53]} 33. d6 {[%clk 0:00:27]}  Qf7 {[%clk 0:00:45]} 34. Nc7 {[%clk 0:00:27]}  Qxc4 {[%clk 0:00:43]} 35. Bd5+ {[%clk 0:00:27]}  Qxd5 {[%clk 0:00:43]} 36. Nxd5 {[%clk 0:00:25]}  Rxd6 {[%clk 0:00:44]} 0-1


[Site "https://www.chess.com"]

[Event "Titled Tuesday Blitz June 13 Early 2023"]
[White "Sarkar, Justin"]
[Black "Fiorito, Joaquin"]
[WhiteFideId "2010011"]
[BlackFideId "180173"]
[WhiteElo "2151"]
[BlackElo "2199"]
[Result "1/2-1/2"]
[Round "4"]
[TimeControl "180+2"]
[Date "2023.06.13"]
[WhiteClock "0:00:04"]
[BlackClock "0:01:12"]
[Board "95"]

1. e4 {[%clk 0:02:46]}  c5 {[%clk 0:03:00]} 2. Nf3 {[%clk 0:02:44]}  d6 {[%clk 0:03:00]} 3. d4 {[%clk 0:02:42]}  cxd4 {[%clk 0:03:00]} 4. Nxd4 {[%clk 0:02:41]}  Nf6 {[%clk 0:03:01]} 5. Nc3 {[%clk 0:02:40]}  a6 {[%clk 0:03:01]} 6. Be3 {[%clk 0:02:34]}  e5 {[%clk 0:03:01]} 7. Nb3 {[%clk 0:02:33]}  Be6 {[%clk 0:03:00]} 8. f3 {[%clk 0:02:28]}  Be7 {[%clk 0:02:58]} 9. Qd2 {[%clk 0:02:28]}  h5 {[%clk 0:02:59]} 10. O-O-O {[%clk 0:02:25]}  Nbd7 {[%clk 0:02:57]} 11. Nd5 {[%clk 0:02:21]}  Nxd5 {[%clk 0:02:57]} 12. exd5 {[%clk 0:02:21]}  Bf5 {[%clk 0:02:57]} 13. Bd3 {[%clk 0:02:17]}  Bxd3 {[%clk 0:02:57]} 14. Qxd3 {[%clk 0:02:17]}  Rc8 {[%clk 0:02:57]} 15. Kb1 {[%clk 0:02:15]}  b5 {[%clk 0:02:51]} 16. Qd2 {[%clk 0:02:07]}  Nb6 {[%clk 0:02:46]} 17. Bxb6 {[%clk 0:01:46]}  Qxb6 {[%clk 0:02:46]} 18. Na5 {[%clk 0:01:46]}  Bf6 {[%clk 0:02:33]} 19. Nc6 {[%clk 0:01:42]}  b4 {[%clk 0:02:07]} 20. Rhe1 {[%clk 0:01:36]}  a5 {[%clk 0:02:05]} 21. f4 {[%clk 0:01:32]}  O-O {[%clk 0:01:58]} 22. fxe5 {[%clk 0:01:30]}  dxe5 {[%clk 0:01:57]} 23. Nxe5 {[%clk 0:01:21]}  Rfd8 {[%clk 0:01:51]} 24. d6 {[%clk 0:00:45]}  Qc5 {[%clk 0:01:40]} 25. Qd5 {[%clk 0:00:04]}  Qxc2+ {[%clk 0:01:36]} 26. Ka1 {[%clk 0:00:05]}  a4 {[%clk 0:01:32]} 27. Qxf7+ {[%clk 0:00:04]}  Kh8 {[%clk 0:01:24]} 28. Qxh5+ {[%clk 0:00:04]}  Kg8 {[%clk 0:01:21]} 29. Qf7+ {[%clk 0:00:04]}  Kh8 {[%clk 0:01:21]} 30. Qh5+ {[%clk 0:00:04]}  Kg8 {[%clk 0:01:12]} 31. Qf7+ {[%clk 0:00:04]}  Kh7 {[%clk 0:01:12]} 32. Qh5+ {[%clk 0:00:04]}  Kg8 {[%clk 0:01:12]} 1/2-1/2


[Site "https://www.chess.com"]

[Event "Titled Tuesday Blitz June 13 Early 2023"]
[White "Kashlinskaya, Alina"]
[Black "Afanasieva, Alexandra"]
[WhiteFideId "4198026"]
[BlackFideId "34126926"]
[WhiteElo "2383"]
[BlackElo "1736"]
[Result "1-0"]
[Round "4"]
[TimeControl "180+2"]
[Date "2023.06.13"]
[WhiteClock "0:02:15"]
[BlackClock "0:00:05"]
[Board "97"]

1. Nf3 {[%clk 0:02:57]}  Nf6 {[%clk 0:02:59]} 2. g3 {[%clk 0:02:57]}  c5 {[%clk 0:02:58]} 3. Bg2 {[%clk 0:02:57]}  d5 {[%clk 0:02:59]} 4. O-O {[%clk 0:02:57]}  e6 {[%clk 0:02:59]} 5. d3 {[%clk 0:02:56]}  Nc6 {[%clk 0:02:57]} 6. Nbd2 {[%clk 0:02:56]}  g6 {[%clk 0:02:58]} 7. e4 {[%clk 0:02:56]}  Bg7 {[%clk 0:02:58]} 8. Qe2 {[%clk 0:02:57]}  O-O {[%clk 0:02:59]} 9. Re1 {[%clk 0:02:57]}  Rb8 {[%clk 0:02:34]} 10. Nf1 {[%clk 0:02:57]}  b5 {[%clk 0:02:26]} 11. e5 {[%clk 0:02:55]}  Nd7 {[%clk 0:02:26]} 12. Bf4 {[%clk 0:02:56]}  c4 {[%clk 0:02:04]} 13. d4 {[%clk 0:02:54]}  b4 {[%clk 0:02:02]} 14. h4 {[%clk 0:02:46]}  h6 {[%clk 0:02:01]} 15. Qe3 {[%clk 0:02:39]}  Kh7 {[%clk 0:01:56]} 16. N1h2 {[%clk 0:02:39]}  Ne7 {[%clk 0:01:46]} 17. g4 {[%clk 0:02:25]}  a5 {[%clk 0:01:00]} 18. Nf1 {[%clk 0:02:21]}  a4 {[%clk 0:00:54]} 19. Ng3 {[%clk 0:02:21]}  b3 {[%clk 0:00:53]} 20. c3 {[%clk 0:02:21]}  a3 {[%clk 0:00:35]} 21. bxa3 {[%clk 0:02:20]}  b2 {[%clk 0:00:33]} 22. Rab1 {[%clk 0:02:21]}  Qa5 {[%clk 0:00:34]} 23. h5 {[%clk 0:02:17]}  Qxa3 {[%clk 0:00:28]} 24. g5 {[%clk 0:02:16]}  gxh5 {[%clk 0:00:07]} 25. gxh6 {[%clk 0:02:16]}  Nf5 {[%clk 0:00:05]} 26. Nxf5 {[%clk 0:02:15]} 1-0


[Site "https://www.chess.com"]

[Event "Titled Tuesday Blitz June 13 Early 2023"]
[White "Haug, Havard"]
[Black "Levitan, Caleb Levi"]
[WhiteFideId "1547887"]
[BlackFideId "14332620"]
[WhiteElo "2396"]
[BlackElo "1963"]
[Result "1-0"]
[Round "4"]
[TimeControl "180+2"]
[Date "2023.06.13"]
[WhiteClock "0:00:51"]
[BlackClock "0:00:04"]
[Board "98"]

1. e4 {[%clk 0:03:00]}  e5 {[%clk 0:02:57]} 2. Nc3 {[%clk 0:02:56]}  Nf6 {[%clk 0:02:54]} 3. Bc4 {[%clk 0:02:56]}  Bc5 {[%clk 0:02:52]} 4. d3 {[%clk 0:02:54]}  d6 {[%clk 0:02:47]} 5. Be3 {[%clk 0:02:49]}  O-O {[%clk 0:02:36]} 6. Nge2 {[%clk 0:02:47]}  Bxe3 {[%clk 0:02:33]} 7. fxe3 {[%clk 0:02:48]}  c6 {[%clk 0:02:31]} 8. O-O {[%clk 0:02:46]}  d5 {[%clk 0:02:22]} 9. exd5 {[%clk 0:02:47]}  cxd5 {[%clk 0:02:22]} 10. Bb3 {[%clk 0:02:46]}  Be6 {[%clk 0:02:21]} 11. d4 {[%clk 0:02:43]}  Nc6 {[%clk 0:02:14]} 12. Qd2 {[%clk 0:02:37]}  a5 {[%clk 0:01:56]} 13. a4 {[%clk 0:02:33]}  Re8 {[%clk 0:01:33]} 14. dxe5 {[%clk 0:02:30]}  Nxe5 {[%clk 0:01:33]} 15. Rad1 {[%clk 0:02:30]}  Nc4 {[%clk 0:01:26]} 16. Bxc4 {[%clk 0:02:29]}  dxc4 {[%clk 0:01:26]} 17. Qxd8 {[%clk 0:02:27]}  Raxd8 {[%clk 0:01:26]} 18. Nd4 {[%clk 0:02:26]}  Nd5 {[%clk 0:01:25]} 19. Nxd5 {[%clk 0:02:24]}  Bxd5 {[%clk 0:01:21]} 20. Kf2 {[%clk 0:02:24]}  f6 {[%clk 0:01:11]} 21. Rd2 {[%clk 0:02:19]}  Bc6 {[%clk 0:01:07]} 22. Ra1 {[%clk 0:02:17]}  Rd7 {[%clk 0:00:59]} 23. b3 {[%clk 0:02:09]}  cxb3 {[%clk 0:00:53]} 24. cxb3 {[%clk 0:02:09]}  Bd5 {[%clk 0:00:40]} 25. Rad1 {[%clk 0:02:06]}  Red8 {[%clk 0:00:35]} 26. Nc2 {[%clk 0:01:32]}  Be6 {[%clk 0:00:31]} 27. Rxd7 {[%clk 0:01:33]}  Rxd7 {[%clk 0:00:30]} 28. Rxd7 {[%clk 0:01:32]}  Bxd7 {[%clk 0:00:31]} 29. e4 {[%clk 0:01:33]}  Kf7 {[%clk 0:00:29]} 30. Ke3 {[%clk 0:01:32]}  Ke6 {[%clk 0:00:24]} 31. Nd4+ {[%clk 0:01:32]}  Ke5 {[%clk 0:00:24]} 32. Nf3+ {[%clk 0:01:32]}  Kd6 {[%clk 0:00:23]} 33. Kd4 {[%clk 0:01:32]}  b5 {[%clk 0:00:19]} 34. axb5 {[%clk 0:01:27]}  Bxb5 {[%clk 0:00:20]} 35. e5+ {[%clk 0:01:28]}  fxe5+ {[%clk 0:00:19]} 36. Nxe5 {[%clk 0:01:29]}  Bf1 {[%clk 0:00:15]} 37. g3 {[%clk 0:01:27]}  Bh3 {[%clk 0:00:15]} 38. Nc4+ {[%clk 0:01:27]}  Kc6 {[%clk 0:00:15]} 39. Nxa5+ {[%clk 0:01:28]}  Kb5 {[%clk 0:00:15]} 40. Nc4 {[%clk 0:01:26]}  Kb4 {[%clk 0:00:16]} 41. Nd6 {[%clk 0:01:20]}  Kxb3 {[%clk 0:00:15]} 42. Ne8 {[%clk 0:01:20]}  g6 {[%clk 0:00:15]} 43. Nf6 {[%clk 0:01:19]}  h6 {[%clk 0:00:15]} 44. Ke5 {[%clk 0:00:58]}  Kc4 {[%clk 0:00:15]} 45. Ng8 {[%clk 0:00:58]}  h5 {[%clk 0:00:14]} 46. Kf6 {[%clk 0:00:57]}  h4 {[%clk 0:00:11]} 47. gxh4 {[%clk 0:00:55]}  Kd4 {[%clk 0:00:11]} 48. Kxg6 {[%clk 0:00:54]}  Ke4 {[%clk 0:00:12]} 49. h5 {[%clk 0:00:53]}  Bf5+ {[%clk 0:00:10]} 50. Kg5 {[%clk 0:00:50]}  Be6 {[%clk 0:00:05]} 51. Nf6+ {[%clk 0:00:45]}  Ke5 {[%clk 0:00:05]} 52. h6 {[%clk 0:00:45]}  Bf5 {[%clk 0:00:05]} 53. h7 {[%clk 0:00:46]}  Bxh7 {[%clk 0:00:05]} 54. Nxh7 {[%clk 0:00:47]}  Ke4 {[%clk 0:00:04]} 55. h4 {[%clk 0:00:46]}  Ke5 {[%clk 0:00:05]} 56. h5 {[%clk 0:00:47]}  Ke6 {[%clk 0:00:06]} 57. Kg6 {[%clk 0:00:47]}  Ke7 {[%clk 0:00:06]} 58. Ng5 {[%clk 0:00:48]}  Kf8 {[%clk 0:00:06]} 59. Kh7 {[%clk 0:00:49]}  Ke7 {[%clk 0:00:05]} 60. Kg7 {[%clk 0:00:50]}  Ke8 {[%clk 0:00:05]} 61. h6 {[%clk 0:00:50]}  Ke7 {[%clk 0:00:04]} 62. h7 {[%clk 0:00:51]} 1-0


[Site "https://www.chess.com"]

[Event "Titled Tuesday Blitz June 13 Early 2023"]
[White "Sourath Biswas"]
[Black "Andreassen, Lars"]
[WhiteFideId "35091484"]
[BlackFideId "1504878"]
[WhiteElo "2171"]
[BlackElo "2119"]
[Result "0-1"]
[Round "4"]
[TimeControl "180+2"]
[Date "2023.06.13"]
[WhiteClock "0:02:30"]
[BlackClock "0:02:41"]
[Board "99"]

1. d4 {[%clk 0:03:00]}  d5 {[%clk 0:02:54]} 2. Bf4 {[%clk 0:02:57]}  e6 {[%clk 0:02:54]} 3. e3 {[%clk 0:02:54]}  Bd6 {[%clk 0:02:54]} 4. Nf3 {[%clk 0:02:54]}  Bxf4 {[%clk 0:02:53]} 5. exf4 {[%clk 0:02:55]}  Ne7 {[%clk 0:02:54]} 6. c3 {[%clk 0:02:48]}  O-O {[%clk 0:02:54]} 7. Nbd2 {[%clk 0:02:49]}  b6 {[%clk 0:02:55]} 8. h4 {[%clk 0:02:48]}  c5 {[%clk 0:02:54]} 9. h5 {[%clk 0:02:48]}  h6 {[%clk 0:02:54]} 10. Ne5 {[%clk 0:02:47]}  cxd4 {[%clk 0:02:53]} 11. cxd4 {[%clk 0:02:48]}  Nbc6 {[%clk 0:02:49]} 12. Ndf3 {[%clk 0:02:45]}  Nxe5 {[%clk 0:02:45]} 13. Nxe5 {[%clk 0:02:44]}  Qd6 {[%clk 0:02:44]} 14. Qd2 {[%clk 0:02:39]}  Bb7 {[%clk 0:02:44]} 15. Bd3 {[%clk 0:02:39]}  Rac8 {[%clk 0:02:43]} 16. O-O {[%clk 0:02:34]}  Rc7 {[%clk 0:02:41]} 17. Rfc1 {[%clk 0:02:33]}  Rfc8 {[%clk 0:02:41]} 18. Rxc7 {[%clk 0:02:33]}  Qxc7 {[%clk 0:02:42]} 19. Rc1 {[%clk 0:02:30]}  Qxc1+ {[%clk 0:02:41]} 0-1


[Site "https://www.chess.com"]